bitfinex/quotes_SOLUSD_20241214
["timestamp","ask_amount","ask_price","bid_price","bid_amount"]
[1734203492548,0.6611,217.61,217.48,0.68968929]
[1734203492755,0.6611,217.61,217.52,8.91705625]
[1734203494130,20.0,217.59,217.52,8.91705625]
[1734203496024,0.12549,217.6,217.53,8.91705625]
[1734203496433,0.12549,217.6,217.54,8.91705625]
[1734203496741,6.2689,217.62,217.55,8.91705625]
[1734203498131,0.12549,217.61,217.53,8.91705625]
[1734203499625,0.12549,217.61,217.5,20.68940582]
[1734203499843,0.25098,217.61,217.51,8.91705625]
[1734203500126,0.25098,217.61,217.5,8.91705625]
[1734203500549,0.25098,217.61,217.51,8.91705625]
[1734203501631,0.12549,217.57,217.46,20.0]
[1734203501831,24.027864,217.57,217.39,1.5022]
[1734203502042,24.027864,217.57,217.45,8.91705625]
[1734203504044,24.027864,217.57,217.47,8.91705625]
[1734203505937,6.3864,217.56,217.48,8.91705625]
[1734203507967,0.6611,217.58,217.51,8.91705625]
[1734203508165,6.3864,217.62,217.53,8.91705625]
[1734203508444,6.3864,217.62,217.47,35.668225]
[1734203508445,6.3864,217.62,217.54,8.91705625]
[1734203508662,0.12549,217.61,217.54,8.91705625]
[1734203509027,0.12549,217.61,217.48,0.68943903]
[1734203509229,0.12549,217.61,217.53,8.91705625]
[1734203509630,0.12549,217.61,217.55,8.91705625]
[1734203509830,0.12549,217.61,217.54,8.91705625]
[1734203512155,0.12549,217.61,217.53,8.91705625]
[1734203514558,0.12549,217.61,217.52,8.91705625]
[1734203515256,0.12549,217.61,217.44,141.1731]
[1734203515257,20.25098,217.58,217.44,6.4731]
[1734203515441,0.12549,217.56,217.46,38.91705625]
[1734203515781,0.25098,217.56,217.46,38.91705625]
[1734203516341,0.25098,217.56,217.46,8.91705625]
[1734203518340,0.25098,217.56,217.42,21.5452]
[1734203518546,20.0,217.54,217.42,1.5452]
[1734203518756,0.12549,217.53,217.45,8.91705625]
[1734203519274,0.12549,217.53,217.4,0.68964396]
[1734203519449,24.027864,217.53,217.43,8.91705625]
[1734203520251,24.027864,217.53,217.44,8.91705625]
[1734203520456,24.027864,217.53,217.41,30.0]
[1734203520776,24.027864,217.53,217.38,8.65256356]
[1734203520777,24.027864,217.53,217.43,8.91705625]
[1734203520975,24.027864,217.53,217.44,8.91705625]
[1734203522965,0.12549,217.53,217.46,8.91705625]
[1734203523148,26.9834,217.54,217.47,8.91705625]
[1734203523344,26.9834,217.54,217.41,20.0]
[1734203523553,26.9834,217.54,217.4,0.68966538]
[1734203523865,26.9834,217.54,217.46,8.91705625]
[1734203525978,0.12549,217.53,217.4,0.68966538]
[1734203526195,0.25098,217.53,217.44,8.91705625]
[1734203526549,24.027864,217.53,217.38,8.65253414]
[1734203526853,24.027864,217.53,217.44,8.91705625]
[1734203527258,24.027864,217.53,217.38,8.65253414]
[1734203527463,24.027864,217.53,217.44,8.91705625]
[1734203530490,0.12549,217.53,217.46,8.91705625]
[1734203530694,0.12549,217.53,217.45,8.91705625]
[1734203530896,0.12549,217.53,217.38,8.65253414]
[1734203531098,24.027864,217.53,217.39,30.0]
[1734203531399,24.027864,217.53,217.44,8.91705625]
[1734203532390,24.027864,217.53,217.45,8.91705625]
[1734203532561,0.25098,217.53,217.45,8.91705625]
[1734203532761,0.12549,217.53,217.47,8.91705625]
[1734203534785,0.12549,217.53,217.4,0.68976825]
[1734203534967,0.12549,217.53,217.46,8.91705625]
[1734203538874,0.12549,217.53,217.41,30.0]
[1734203539069,0.12549,217.53,217.45,8.91705625]
[1734203540168,0.12549,217.53,217.46,8.91705625]
[1734203541890,0.12549,217.53,217.41,30.6896768]
[1734203542188,0.12549,217.53,217.41,30.0]
[1734203542487,0.12549,217.53,217.44,8.91705625]
[1734203542873,0.12549,217.53,217.45,8.91705625]
[1734203544071,0.12549,217.53,217.46,8.91705625]
[1734203546378,0.12549,217.53,217.45,8.91705625]
[1734203547369,0.12549,217.53,217.46,8.91705625]
[1734203548093,0.12549,217.53,217.4,0.68967533]
[1734203548270,24.027864,217.53,217.41,30.0]
[1734203548472,24.027864,217.53,217.43,8.91705625]
[1734203549191,24.027864,217.53,217.44,8.91705625]
[1734203553198,0.12549,217.53,217.46,8.91705625]
[1734203553387,6.4378,217.59,217.52,8.91705625]
[1734203553995,0.12549,217.58,217.52,8.91705625]
[1734203554383,6.4378,217.59,217.52,8.91705625]
[1734203555677,20.0,217.61,217.55,8.91705625]
[1734203555994,20.0,217.61,217.54,8.91705625]
[1734203557286,20.0,217.61,217.53,8.91705625]
[1734203557485,24.027864,217.6,217.46,7.7881]
[1734203557691,24.027864,217.6,217.49,8.91705625]
[1734203561506,24.027864,217.58,217.43,0.68954937]
[1734203561708,24.027864,217.58,217.45,8.91705625]
[1734203562087,0.12549,217.54,217.45,8.91705625]
[1734203562283,0.12549,217.54,217.44,30.0]
[1734203562488,0.12549,217.54,217.46,8.91705625]
[1734203562713,0.12549,217.52,217.41,1.5256]
[1734203562915,0.25098,217.52,217.44,8.91705625]
[1734203563092,24.027864,217.52,217.44,8.91705625]
[1734203563285,20.0,217.49,217.42,38.91705625]
[1734203563512,20.0,217.49,217.37,0.6897329]
[1734203563819,20.0,217.49,217.43,8.91705625]
[1734203566796,20.0,217.53,217.46,8.91705625]
[1734203567702,20.0,217.53,217.45,8.91705625]
[1734203568817,20.0,217.53,217.39,0.68979779]
[1734203569005,20.0,217.53,217.45,8.91705625]
[1734203569201,20.0,217.53,217.46,8.91705625]
[1734203570813,20.0,217.53,217.41,20.0]
[1734203571015,20.0,217.53,217.46,8.91705625]
[1734203571501,23.902374,217.55,217.46,8.91705625]
[1734203572198,23.902374,217.55,217.45,8.91705625]
[1734203572601,0.12549,217.54,217.44,8.91705625]
[1734203573493,0.12549,217.54,217.43,8.91705625]
[1734203575031,23.902374,217.51,217.38,0.68972878]
[1734203575527,23.902374,217.51,217.43,8.91705625]
[1734203578008,23.902374,217.53,217.43,8.91705625]
[1734203578230,20.0,217.5,217.43,8.91705625]
[1734203579113,20.0,217.5,217.44,8.91705625]
[1734203579512,23.902374,217.49,217.4,8.91705625]
[1734203579714,23.902374,217.49,217.39,8.91705625]
[1734203580310,20.0,217.45,217.35,1.5256]
[1734203580520,20.0,217.45,217.37,8.91705625]
[1734203580834,0.6611,217.51,217.42,8.91705625]
[1734203581021,23.776884,217.5,217.43,8.91705625]
[1734203581816,0.6611,217.51,217.43,8.91705625]
[1734203582035,6.479,217.53,217.47,8.91705625]
[1734203583640,6.479,217.53,217.46,8.91705625]
[1734203584722,6.479,217.53,217.39,0.68976815]
[1734203584924,6.479,217.53,217.45,8.91705625]
[1734203585812,43.776884,217.56,217.48,8.91705625]
[1734203586141,0.6611,217.57,217.44,0.68959533]
[1734203586343,0.6611,217.57,217.5,8.91705625]
[1734203587413,0.6611,217.57,217.51,8.91705625]
[1734203587828,0.6611,217.57,217.5,8.91705625]
[1734203588229,0.6611,217.57,217.49,8.91705625]
[1734203589140,0.6611,217.57,217.48,8.91705625]
[1734203589330,44.027864,217.56,217.43,1.5192]
[1734203589539,44.027864,217.56,217.45,30.0]
[1734203589725,44.027864,217.56,217.44,8.91705625]
[1734203591836,44.027864,217.56,217.43,1.5192]
[1734203592023,44.027864,217.56,217.42,8.91705625]
[1734203592728,44.027864,217.56,217.38,1.6195]
[1734203592930,24.027864,217.54,217.4,8.91705625]
[1734203593117,23.902374,217.5,217.4,8.91705625]
[1734203593316,23.902374,217.5,217.38,1.6195]
[1734203593513,0.12549,217.49,217.39,8.91705625]
[1734203593739,23.902374,217.48,217.39,8.91705625]
[1734203593937,23.902374,217.48,217.34,5.65725234]
[1734203594137,23.902374,217.48,217.39,8.91705625]
[1734203597239,23.902374,217.48,217.4,8.91705625]
[1734203597536,23.902374,217.48,217.41,8.91705625]
[1734203600553,20.0,217.48,217.43,8.91705625]
[1734203600934,20.0,217.48,217.42,8.91705625]
[1734203604944,20.0,217.48,217.41,8.91705625]
[1734203605147,23.902374,217.47,217.39,8.91705625]
[1734203605345,23.902374,217.47,217.35,30.0]
[1734203605641,23.902374,217.47,217.38,8.91705625]
[1734203606032,20.0,217.44,217.34,0.68980798]
[1734203606228,20.0,217.44,217.38,8.91705625]
[1734203607154,23.902374,217.47,217.33,2.3094619]
[1734203607352,23.902374,217.47,217.38,8.91705625]
[1734203607554,20.0,217.44,217.35,8.91705625]
[1734203607746,23.902374,217.43,217.31,104.16666667]
[1734203607964,20.0,217.4,217.33,8.91705625]
[1734203608453,20.0,217.36,217.31,104.16666667]
[1734203610665,20.0,217.36,217.31,29.58851558]
[1734203610666,43.902374,217.32,217.31,29.58851558]
[1734203610954,43.902374,217.32,217.23,0.5442173]
[1734203610955,20.0,217.24,217.23,0.5442173]
[1734203611135,43.902374,217.24,217.23,0.5442173]
[1734203611336,20.0,217.24,217.23,0.5442173]
[1734203612253,23.902374,217.27,217.23,0.5442173]
[1734203612467,20.0,217.24,217.23,0.5442173]
[1734203612660,43.902374,217.24,217.23,0.5442173]
[1734203614461,44.027864,217.24,217.23,0.5442173]
[1734203615151,50.275264,217.24,217.23,0.5442173]
[1734203616357,23.902374,217.18,217.17,104.16666667]
[1734203616549,24.027864,217.18,217.17,104.16666667]
[1734203617058,30.275264,217.18,217.17,76.53832283]
[1734203617259,35.275264,217.18,217.17,76.53832283]
[1734203617436,49.065264,217.18,217.17,76.53832283]
[1734203617959,49.065264,217.18,217.17,69.20893776]
[1734203618174,23.902374,217.09,217.03,104.16666667]
[1734203618465,20.0,217.06,217.03,104.16666667]
[1734203618641,6.2474,217.18,217.03,104.16666667]
[1734203618642,20.0,217.14,217.03,104.16666667]
[1734203618840,0.12549,217.09,217.03,104.16666667]
[1734203619057,23.902374,217.09,217.03,104.16666667]
[1734203619437,0.12549,217.13,217.03,104.16666667]
[1734203619634,23.776884,217.1,217.03,104.16666667]
[1734203620062,6.2474,217.18,217.03,118.17282455]
[1734203620261,0.12549,217.15,217.03,118.17282455]
[1734203620474,0.12549,217.15,217.03,104.16666667]
[1734203621159,24.027864,217.15,217.03,104.16666667]
[1734203621744,23.902374,217.11,217.03,118.17282455]
[1734203622064,23.902374,217.11,217.03,104.16666667]
[1734203622868,23.902374,217.11,217.03,118.17282455]
[1734203623854,20.0,217.12,217.03,118.17282455]
[1734203624061,23.776884,217.14,217.04,14.00615788]
[1734203624555,6.156,217.24,217.08,14.00615788]
[1734203624869,6.156,217.24,217.1,14.00615788]
[1734203625162,0.12549,217.23,217.09,14.00615788]
[1734203625376,6.156,217.24,217.09,14.00615788]
[1734203626068,6.156,217.24,217.05,7.7882]
[1734203626069,0.12549,217.2,217.08,14.00615788]
[1734203626271,0.12549,217.2,217.09,14.00615788]
[1734203626764,24.027864,217.2,217.09,14.00615788]
[1734203626973,20.0,217.17,217.09,14.00615788]
[1734203627665,20.0,217.17,217.1,14.00615788]
[1734203627868,20.0,217.17,217.05,7.7882]
[1734203628059,20.0,217.17,217.1,14.00615788]
[1734203628753,0.12549,217.2,217.1,14.00615788]
[1734203629252,20.0,217.18,217.1,14.00615788]
[1734203629768,23.776884,217.23,217.1,14.00615788]
[1734203629972,0.25098,217.22,217.1,14.00615788]
[1734203631350,0.12549,217.19,217.1,14.00615788]
[1734203631857,23.902374,217.19,217.1,14.00615788]
[1734203634664,23.902374,217.19,217.05,7.7882]
[1734203634856,23.902374,217.19,217.08,14.00615788]
[1734203635380,0.12549,217.18,217.1,14.00615788]
[1734203635745,0.12549,217.18,217.09,14.00615788]
[1734203636651,0.12549,217.18,217.05,7.7882]
[1734203637051,0.12549,217.18,217.09,14.00615788]
[1734203637274,0.12549,217.18,217.09,8.95679346]
[1734203638768,0.12549,217.18,217.1,8.95679346]
[1734203639166,4.76763765,217.31,217.16,8.95679346]
[1734203639167,6.495,217.31,217.16,8.95679346]
[1734203639368,6.495,217.31,217.17,8.95679346]
[1734203639770,6.495,217.31,217.16,8.95679346]
[1734203640471,23.902374,217.3,217.16,8.95679346]
[1734203640674,23.902374,217.3,217.09,5.0]
[1734203640675,23.902374,217.26,217.09,20.0]
[1734203640886,23.902374,217.26,217.14,8.95679346]
[1734203641055,0.12549,217.25,217.09,20.0]
[1734203641261,0.12549,217.25,217.14,8.95679346]
[1734203641578,0.12549,217.25,217.09,20.0]
[1734203641579,23.902374,217.26,217.15,8.95679346]
[1734203642051,0.12549,217.25,217.16,8.95679346]
[1734203643092,0.12549,217.25,217.17,8.95679346]
[1734203643408,6.495,217.31,217.2,8.95679346]
[1734203644160,0.12549,217.3,217.2,8.95679346]
[1734203644567,0.12549,217.29,217.2,8.95679346]
[1734203645401,6.495,217.31,217.21,8.95679346]
[1734203646584,0.25098,217.29,217.21,8.95679346]
[1734203647166,0.25098,217.29,217.2,8.95679346]
[1734203649584,0.25098,217.29,217.19,8.95679346]
[1734203649785,0.25098,217.29,217.2,8.95679346]
[1734203650358,1.88131942,217.37,217.21,8.95679346]
[1734203650563,20.0,217.35,217.25,8.95679346]
[1734203650759,0.12549,217.34,217.24,8.95679346]
[1734203650983,0.12549,217.34,217.15,1.6198]
[1734203651174,0.12549,217.34,217.22,8.95679346]
[1734203651367,0.12549,217.34,217.21,8.95679346]
[1734203651758,24.027864,217.34,217.21,8.95679346]
[1734203651975,24.027864,217.3,217.21,8.95679346]
[1734203656672,24.027864,217.3,217.22,8.95679346]
[1734203656872,24.027864,217.3,217.23,8.95679346]
[1734203658693,24.027864,217.3,217.2,8.95679346]
[1734203660368,24.027864,217.3,217.21,8.95679346]
[1734203661591,24.027864,217.3,217.15,1.6198]
[1734203661794,24.027864,217.3,217.2,8.95679346]
[1734203663286,24.027864,217.26,217.15,1.6198]
[1734203663475,24.027864,217.26,217.15,10.57659346]
[1734203664193,24.027864,217.26,217.18,8.95679346]
[1734203664569,0.12549,217.26,217.2,8.95679346]
[1734203664773,23.902374,217.27,217.15,1.6198]
[1734203664977,6.6646,217.31,217.21,8.95679346]
[1734203665173,0.12549,217.3,217.15,1.6198]
[1734203665476,0.12549,217.3,217.18,8.95679346]
[1734203666295,44.027864,217.27,217.18,8.95679346]
[1734203666794,24.027864,217.27,217.18,8.95679346]
[1734203667585,24.027864,217.27,217.17,8.95679346]
[1734203667794,24.027864,217.27,217.15,1.6198]
[1734203667998,24.027864,217.27,217.17,8.95679346]
[1734203668499,0.12549,217.27,217.21,8.95679346]
[1734203668888,23.902374,217.27,217.15,1.6198]
[1734203669089,23.902374,217.27,217.18,8.95679346]
[1734203669791,0.12549,217.26,217.18,8.95679346]
[1734203672980,0.12549,217.26,217.11,134.7]
[1734203673179,0.12549,217.26,217.15,8.95679346]
[1734203673435,0.12549,217.26,217.14,8.95679346]
[1734203673600,23.902374,217.23,217.11,134.7]
[1734203673819,24.027864,217.23,217.13,8.95679346]
[1734203673979,24.027864,217.23,217.14,8.95679346]
[1734203676303,24.027864,217.23,217.15,8.95679346]
[1734203676689,24.027864,217.23,217.16,8.95679346]
[1734203677185,24.027864,217.18,217.11,8.95679346]
[1734203677387,24.027864,217.18,217.1,10.46629346]
[1734203678008,24.027864,217.18,217.11,8.95679346]
[1734203679193,24.027864,217.18,217.1,8.95679346]
[1734203679391,24.027864,217.18,217.05,1.5217]
[1734203679609,24.027864,217.18,217.09,8.95679346]
[1734203680922,24.027864,217.18,217.1,8.95679346]
[1734203681106,24.027864,217.18,217.05,1.5217]
[1734203681107,0.12549,217.14,217.05,1.5217]
[1734203681404,20.0,217.19,217.12,8.95679346]
[1734203681589,23.776884,217.18,217.12,8.95679346]
[1734203681800,0.12549,217.17,217.12,8.95679346]
[1734203684010,20.0,217.19,217.13,8.95679346]
[1734203684394,0.12549,217.18,217.12,8.95679346]
[1734203684698,0.12549,217.18,217.13,8.95679346]
[1734203687814,6.5789,217.31,217.17,8.95679346]
[1734203687997,8.956793,217.29,217.17,8.95679346]
[1734203688192,8.956793,217.29,217.18,8.95679346]
[1734203688516,9.082283,217.3,217.15,8.95679346]
[1734203689314,0.12549,217.28,217.15,8.95679346]
[1734203689696,0.12549,217.28,217.16,8.95679346]
[1734203690016,0.12549,217.28,217.17,8.95679346]
[1734203690217,8.956793,217.3,217.17,8.95679346]
[1734203690415,20.0,217.27,217.11,0.69066192]
[1734203690712,0.12549,217.22,217.13,8.95679346]
[1734203691719,0.12549,217.21,217.13,8.95679346]
[1734203692515,0.12549,217.21,217.08,20.0]
[1734203692719,0.12549,217.21,217.13,8.95679346]
[1734203692909,0.12549,217.21,217.07,1.5217]
[1734203693113,0.12549,217.21,217.09,8.95679346]
[1734203693603,23.902374,217.16,217.03,104.16666667]
[1734203693801,0.12549,217.15,217.07,8.95679346]
[1734203694115,0.12549,217.15,217.03,104.16666667]
[1734203694116,0.12549,217.15,217.08,8.95679346]
[1734203696119,0.12549,217.15,217.09,8.95679346]
[1734203699322,0.12549,217.15,217.1,8.95679346]
[1734203700331,6.5789,217.2,217.14,8.95679346]
[1734203700724,0.12549,217.19,217.14,8.95679346]
[1734203700930,0.12549,217.19,217.11,8.95679346]
[1734203701619,24.027864,217.19,217.12,8.95679346]
[1734203702129,24.027864,217.19,217.14,8.95679346]
[1734203702535,6.5789,217.2,217.17,8.95679346]
[1734203702855,18.0337582,217.32,217.19,8.95679346]
[1734203702856,18.415341,217.28,217.19,8.95679346]
[1734203703015,18.415341,217.28,217.18,8.95679346]
[1734203703328,6.6303,217.31,217.18,8.95679346]
[1734203703926,6.6303,217.29,217.08,21.5782]
[1734203704134,20.12549,217.25,217.08,1.5782]
[1734203704317,0.12549,217.23,217.13,8.95679346]
[1734203704629,24.027864,217.2,217.13,8.95679346]
[1734203705132,24.027864,217.2,217.14,8.95679346]
[1734203706336,24.027864,217.2,217.15,8.95679346]
[1734203706917,24.027864,217.2,217.08,1.5782]
[1734203707233,24.027864,217.2,217.12,8.95679346]
[1734203707819,24.027864,217.2,217.13,8.95679346]
[1734203708640,24.027864,217.2,217.12,8.95679346]
[1734203710041,24.027864,217.2,217.08,1.5782]
[1734203710223,24.027864,217.2,217.12,8.95679346]
[1734203710416,24.027864,217.2,217.14,8.95679346]
[1734203710617,24.027864,217.2,217.15,8.95679346]
[1734203710931,0.12549,217.2,217.14,8.95679346]
[1734203711129,0.12549,217.24,217.14,8.95679346]
[1734203711839,0.12549,217.24,217.13,8.95679346]
[1734203712017,0.12549,217.23,217.13,8.95679346]
[1734203712217,24.027864,217.2,217.08,21.5782]
[1734203712423,24.027864,217.2,217.12,8.95679346]
[1734203712728,24.027864,217.2,217.11,8.95679346]
[1734203713925,24.027864,217.2,217.12,8.95679346]
[1734203714119,14.70047098,217.31,217.13,8.95679346]
[1734203714120,0.12549,217.24,217.13,8.95679346]
[1734203714440,20.0,217.22,217.14,8.95679346]
[1734203714819,20.0,217.26,217.16,8.95679346]
[1734203715724,6.6303,217.29,217.17,8.95679346]
[1734203716241,0.12549,217.28,217.12,20.0]
[1734203716633,6.6303,217.29,217.12,20.0]
[1734203716836,6.6303,217.29,217.15,8.95679346]
[1734203717141,44.027864,217.25,217.16,8.95679346]
[1734203717935,6.6303,217.29,217.19,8.95679346]
[1734203718138,6.6303,217.29,217.2,8.95679346]
[1734203718720,6.6303,217.29,217.19,8.95679346]
[1734203719029,0.12549,217.28,217.19,8.95679346]
[1734203719228,0.12549,217.28,217.18,8.95679346]
[1734203719431,0.25098,217.28,217.19,8.95679346]
[1734203719737,0.25098,217.29,217.19,8.95679346]
[1734203719915,0.25098,217.29,217.18,8.95679346]
[1734203720424,24.027864,217.27,217.14,1.5782]
[1734203720626,24.027864,217.27,217.14,10.53499346]
[1734203721026,24.027864,217.27,217.08,7.7547]
[1734203721027,20.0,217.2,217.08,7.7547]
[1734203721229,24.027864,217.19,217.08,7.7547]
[1734203721431,24.027864,217.19,217.09,8.95679346]
[1734203721857,24.027864,217.19,217.1,8.95679346]
[1734203722940,24.027864,217.19,217.08,10.53979346]
[1734203723135,24.027864,217.19,217.08,1.583]
[1734203723136,30.578964,217.19,217.08,1.583]
[1734203723340,24.027864,217.15,217.03,104.16666667]
[1734203723631,24.027864,217.15,217.04,8.95679346]
[1734203724462,24.027864,217.15,217.03,104.16666667]
[1734203726532,24.027864,217.15,217.03,113.12346013]
[1734203726932,24.027864,217.15,217.03,104.16666667]
[1734203727330,0.12549,217.11,217.03,104.16666667]
[1734203727526,6.5511,217.1,217.03,104.16666667]
[1734203727733,24.027864,217.09,217.03,104.16666667]
[1734203728166,20.0,217.06,217.03,104.16666667]
[1734203728333,30.578964,217.04,217.03,102.10767487]
[1734203728534,30.578964,217.04,217.03,73.1149868]
[1734203730267,30.578964,217.04,216.99,6.7501861]
[1734203730268,20.0,217.01,216.99,6.7501861]
[1734203730464,20.0,217.0,216.93,3.0]
[1734203730839,0.12549,216.99,216.93,3.0]
[1734203731247,0.12549,217.01,216.93,3.0]
[1734203731540,20.0,217.02,216.93,3.0]
[1734203731541,20.0,217.0,216.93,3.0]
[1734203731751,0.12549,216.99,216.93,3.0]
[1734203732257,0.12549,217.0,216.93,3.0]
[1734203732443,0.25098,216.97,216.93,3.0]
[1734203735754,4.40220588,217.05,216.93,3.0]
[1734203735956,5.0,217.09,216.93,3.0]
[1734203736263,0.12549,217.08,216.93,3.0]
[1734203736464,0.12549,217.06,216.93,4.87255459]
[1734203736851,11.30051751,217.09,216.93,4.87255459]
[1734203737184,24.027864,217.08,216.93,4.87255459]
[1734203737361,0.12549,217.06,216.93,4.87255459]
[1734203737680,24.027864,217.06,216.93,4.87255459]
[1734203738185,23.902374,217.04,216.93,4.87255459]
[1734203738358,0.25098,217.0,216.93,4.87255459]
[1734203739377,24.027864,217.0,216.93,4.87255459]
[1734203739571,0.25098,217.0,216.93,4.87255459]
[1734203739876,24.027864,217.0,216.93,3.0]
[1734203740073,0.25098,217.0,216.93,3.0]
[1734203741015,2.05843334,217.0,216.93,3.0]
[1734203741667,0.25098,216.98,216.93,3.0]
[1734203741863,20.0,216.99,216.93,3.0]
[1734203742295,1.80745334,217.0,216.93,3.0]
[1734203742584,20.0,217.01,216.93,3.0]
[1734203743360,0.12549,217.0,216.93,3.0]
[1734203743992,23.902374,216.96,216.93,3.0]
[1734203744156,23.776884,217.0,216.93,3.0]
[1734203744157,20.12549,216.94,216.93,3.0]
[1734203744359,20.25098,216.94,216.93,3.0]
[1734203744779,20.0,216.94,216.93,3.0]
[1734203749478,0.25098,216.99,216.93,3.0]
[1734203749675,0.12549,216.96,216.93,3.0]
[1734203750268,0.12549,216.99,216.93,3.0]
[1734203750570,4.49298089,217.09,216.93,3.0]
[1734203750779,0.12549,217.03,216.93,3.0]
[1734203751580,20.0,217.01,216.93,3.0]
[1734203751897,0.12549,216.96,216.93,3.0]
[1734203752912,20.2693646,217.04,216.93,9.2494]
[1734203753414,0.12549,217.03,216.93,9.2494]
[1734203753701,20.2693646,217.04,216.93,9.2494]
[1734203754210,20.0,217.01,216.93,9.2494]
[1734203754371,0.12549,217.0,216.93,9.2494]
[1734203757105,0.25098,217.0,216.93,9.2494]
[1734203757286,24.027864,217.0,216.93,9.2494]
[1734203757913,0.12549,216.96,216.93,9.2494]
[1734203758097,20.0,216.97,216.93,9.2494]
[1734203758282,20.0,217.01,216.93,9.2494]
[1734203758771,0.12549,217.0,216.93,9.2494]
[1734203761314,20.0,217.01,216.94,10.52626283]
[1734203761612,20.0,217.02,216.94,10.52626283]
[1734203763278,1.85172279,217.12,216.98,8.97096283]
[1734203763482,18.430183,217.08,216.98,8.97096283]
[1734203763892,0.12549,217.07,216.98,8.97096283]
[1734203764096,0.12549,217.07,216.97,8.97096283]
[1734203764684,20.0,217.05,216.97,8.97096283]
[1734203765088,20.0,217.05,216.98,8.97096283]
[1734203765398,20.0,217.05,216.98,6.6549]
[1734203765898,23.83,217.2,217.01,1.5553]
[1734203766074,8.970963,217.11,217.01,1.5553]
[1734203767103,0.12549,217.1,217.01,1.5553]
[1734203767514,20.0,217.08,217.01,1.5553]
[1734203767713,2.83042335,217.14,217.02,8.97096283]
[1734203767895,6.92716797,217.17,217.03,8.97096283]
[1734203768097,8.970963,217.13,217.03,8.97096283]
[1734203768299,1.862308,217.17,217.03,8.97096283]
[1734203768597,0.12549,217.16,217.03,8.97096283]
[1734203768798,2.88828069,217.16,217.01,10.52626283]
[1734203769204,2.88828069,217.16,217.03,15.60306283]
[1734203769594,0.25098,217.13,217.03,15.60306283]
[1734203770234,0.12549,217.15,217.03,15.60306283]
[1734203770398,8.970963,217.17,217.06,8.97096283]
[1734203770720,0.12549,217.22,217.06,8.97096283]
[1734203770915,8.970962,217.18,217.04,1.6016]
[1734203771231,0.12549,217.17,217.04,1.6016]
[1734203771819,0.12549,217.13,217.04,1.6016]
[1734203772016,0.25098,217.13,217.04,1.6016]
[1734203773307,0.12549,217.09,217.04,1.6016]
[1734203773522,0.25098,217.09,217.04,1.6016]
[1734203775837,1.81614327,217.14,217.04,1.6016]
[1734203775996,20.0,217.15,217.04,1.6016]
[1734203776201,0.25098,217.09,217.04,1.6016]
[1734203777437,20.0,217.1,217.04,1.6016]
[1734203777609,20.0,217.15,217.04,1.6016]
[1734203777997,20.12549,217.14,217.04,1.6016]
[1734203778333,0.12549,217.12,217.04,1.6016]
[1734203779018,23.902374,217.12,217.04,1.6016]
[1734203779198,0.25098,217.08,217.0,6.5733]
[1734203784730,0.12549,217.08,217.0,6.5733]
[1734203785932,0.25098,217.08,217.0,6.5733]
[1734203786432,0.12549,217.04,217.0,6.5733]
[1734203787013,0.25098,217.04,217.0,6.5733]
[1734203789317,0.12549,217.04,217.0,6.5733]
[1734203791436,20.0,217.05,217.0,6.5733]
[1734203791621,0.12549,217.09,217.0,6.5733]
[1734203791825,7.11754824,217.19,217.08,8.97096283]
[1734203792033,7.11754824,217.19,217.09,8.97096283]
[1734203792235,7.11754824,217.22,217.1,8.97096283]
[1734203792446,7.11754824,217.23,217.1,8.97096283]
[1734203792739,7.11754824,217.23,217.11,6.5369]
[1734203792946,1.82664977,217.25,217.12,8.97096283]
[1734203793242,0.12549,217.24,217.11,15.50786283]
[1734203793568,7.11754824,217.26,217.11,6.5369]
[1734203794039,8.94956887,217.27,217.11,6.5369]
[1734203794246,7.11754824,217.27,217.11,6.5369]
[1734203794740,0.25098,217.19,217.11,6.5369]
[1734203796323,0.12549,217.15,217.11,6.5369]
[1734203796727,20.12549,217.12,217.11,6.5369]
[1734203796929,20.25098,217.12,217.11,6.5369]